fUST/lending_fUST_20250201
["ID","MTS","AMOUNT","RATE_DAILY","PERIOD"]
[351123383,1738344646405,-500.0,0.00017808,2]
[351123385,1738344646414,-635.21,0.00017808,2]
[351123388,1738344646423,-500.0,0.00017808,2]
[351123390,1738344646433,-556.53,0.00017808,2]
[351123392,1738344646442,-500.0,0.00017808,2]
[351123394,1738344646453,-845.4,0.00017808,2]
[351123396,1738344646462,-8147.56,0.00017808,2]
[351123397,1738344646473,-5110.0,0.00017808,2]
[351123400,1738344646482,-3058.46,0.00017808,2]
[351123402,1738344646492,-2099.18,0.00017808,2]
[351123404,1738344646501,-500.0,0.00017808,2]
[351123406,1738344646511,-1360.63,0.00017808,2]
[351123408,1738344646521,-500.0,0.00017808,2]
[351123410,1738344646530,-151.0,0.00017808,2]
[351123412,1738344646540,-500.0,0.00017808,2]
[351123414,1738344646550,-598.89,0.00017808,2]
[351123425,1738344646636,-803.39,0.00017808,2]
[351123427,1738344646645,-672.42,0.00017808,2]
[351123429,1738344646654,-500.0,0.00017808,2]
[351123431,1738344646662,-500.0,0.00017808,2]
[351123433,1738344646671,-500.0,0.00017808,2]
[351123435,1738344646680,-776.07,0.00017808,2]
[351123437,1738344646689,-991.52,0.00017808,2]
[351123438,1738344646698,-2003.47,0.00017808,2]
[351123440,1738344646708,-1915.37,0.00017808,2]
[351123442,1738344646717,-500.0,0.00017808,2]
[351123444,1738344646726,-17311.44,0.00017808,2]
[351123446,1738344646735,-500.0,0.00017808,2]
[351123448,1738344646744,-567.75,0.00017808,2]
[351123450,1738344646754,-1216.83,0.00017808,2]
[351123452,1738344646763,-5287.52,0.00017808,2]
[351123454,1738344646773,-500.0,0.00017808,2]
[351123457,1738344646783,-668.33,0.00017808,2]
[351123459,1738344646792,-500.0,0.00017808,2]
[351123461,1738344646801,-1321.32,0.00017808,2]
[351123463,1738344646810,-500.0,0.00017808,2]
[351123465,1738344646820,-500.0,0.00017808,2]
[351123467,1738344646829,-500.0,0.00017808,2]
[351123469,1738344646839,-500.0,0.00017808,2]
[351123471,1738344646848,-858.87,0.00017808,2]
[351123473,1738344646857,-1000.0,0.00017822,2]
[351123475,1738344646867,-420.0,0.00017831,2]
[351123477,1738344646876,-170.64,0.00017874,2]
[351123479,1738344646885,-11511.84066016,0.000179,2]
[351123481,1738344646895,-13175.7560533,0.000179,2]
[351123483,1738344646905,-13175.75605328,0.000179,2]
[351123485,1738344646914,-13175.75605328,0.000179,2]
[351123487,1738344646923,-13175.75605328,0.000179,2]
[351123489,1738344646933,-302.172798,0.000179,2]
[351123491,1738344646942,-302.172798,0.000179,2]
[351123493,1738344646951,-151.0,0.000179,2]
[351123495,1738344646961,-257.565147,0.000179,2]
[351123497,1738344646970,-257.565147,0.000179,2]
[351123499,1738344646979,-159.034666,0.000179,2]
[351123501,1738344646988,-283.968951,0.000179,2]
[351123503,1738344646997,-283.968951,0.000179,2]
[351123505,1738344647007,-402.000057,0.000179,2]
[351123507,1738344647017,-402.000057,0.000179,2]
[351123509,1738344647026,-151.0,0.000179,2]
[351123511,1738344647035,-769.87761517,0.00017934,2]
[351123513,1738344647044,-296.5,0.00017945,2]
[351123515,1738344647054,-229.909298,0.00017945,2]
[351123517,1738344647063,-500.0,0.00017945,2]
[351123519,1738344647072,-635.21,0.00017945,2]
[351123521,1738344647082,-455.62,0.00017945,2]
[351123523,1738344647091,-556.53,0.00017945,2]
[351123525,1738344647100,-500.0,0.00017945,2]
[351123527,1738344647109,-845.4,0.00017945,2]
[351123529,1738344647118,-8147.56,0.00017945,2]
[351123531,1738344647127,-5110.0,0.00017945,2]
[351123533,1738344647136,-3058.46,0.00017945,2]
[351123535,1738344647146,-2099.18,0.00017945,2]
[351123537,1738344647155,-500.0,0.00017945,2]
[351123539,1738344647164,-1360.63,0.00017945,2]
[351123541,1738344647174,-500.0,0.00017945,2]
[351123543,1738344647184,-151.0,0.00017945,2]
[351123546,1738344647194,-500.0,0.00017945,2]
[351123548,1738344647203,-598.89,0.00017945,2]
[351123550,1738344647212,-803.39,0.00017945,2]
[351123552,1738344647222,-672.42,0.00017945,2]
[351123554,1738344647232,-500.0,0.00017945,2]
[351123556,1738344647241,-500.0,0.00017945,2]
[351123558,1738344647250,-500.0,0.00017945,2]
[351123560,1738344647259,-776.07,0.00017945,2]
[351123562,1738344647269,-991.52,0.00017945,2]
[351123564,1738344647278,-2003.47,0.00017945,2]
[351123566,1738344647290,-1915.37,0.00017945,2]
[351123568,1738344647300,-333.80497621,0.00017945,2]
[351123570,1738344647309,-17311.44,0.00017945,2]
[351123572,1738344647318,-500.0,0.00017945,2]
[351123574,1738344647328,-1216.83,0.00017945,2]
[351123576,1738344647338,-567.75,0.00017945,2]
[351123578,1738344647347,-5287.52,0.00017945,2]
[351123580,1738344647356,-500.0,0.00017945,2]
[351123582,1738344647366,-668.33,0.00017945,2]
[351123584,1738344647375,-500.0,0.00017945,2]
[351123586,1738344647385,-1321.32,0.00017945,2]
[351123588,1738344647394,-500.0,0.00017945,2]
[351123590,1738344647404,-500.0,0.00017945,2]
[351123592,1738344647414,-500.0,0.00017945,2]
[351123594,1738344647423,-500.0,0.00017945,2]
[351123596,1738344647433,-858.87,0.00017945,2]
[351123598,1738344647442,-283.968951,0.00017947,2]
[351123600,1738344647452,-283.968951,0.00017947,2]
[351123602,1738344647462,-402.000057,0.00017947,2]
[351123604,1738344647473,-402.000057,0.00017947,2]
[351123606,1738344647482,-151.0,0.00017947,2]
[351123608,1738344647491,-186.0,0.00017948,2]
[351123610,1738344647501,-170.0,0.00017948,2]
[351123612,1738344647510,-170.0,0.00017948,2]
[351123614,1738344647520,-170.0,0.00017948,2]
[351123616,1738344647530,-170.0,0.00017948,2]
[351123618,1738344647539,-170.0,0.00017948,2]
[351123620,1738344647549,-170.0,0.00017948,2]
[351123622,1738344647558,-170.0,0.00017948,2]
[351123624,1738344647568,-170.0,0.00017948,2]
[351123626,1738344647577,-170.0,0.00017948,2]
[351123628,1738344647586,-170.0,0.00017948,2]
[351123630,1738344647596,-170.0,0.00017948,2]
[351123632,1738344647605,-170.0,0.00017948,2]
[351123634,1738344647615,-170.0,0.00017948,2]
[351123635,1738344647624,-170.0,0.00017948,2]
[351123637,1738344647634,-170.0,0.00017948,2]
[351123639,1738344647643,-170.0,0.00017948,2]
[351123641,1738344647653,-170.0,0.00017948,2]
[351123643,1738344647662,-170.0,0.00017948,2]
[351123645,1738344647672,-170.0,0.00017948,2]
[351123647,1738344647681,-170.0,0.00017948,2]
[351123649,1738344647691,-170.0,0.00017948,2]
[351123651,1738344647700,-170.0,0.00017948,2]
[351123654,1738344647711,-170.0,0.00017948,2]
[351123656,1738344647724,-170.0,0.00017948,2]
[351123658,1738344647734,-170.0,0.00017948,2]
[351123660,1738344647742,-170.0,0.00017948,2]
[351123662,1738344647753,-170.0,0.00017948,2]
[351123664,1738344647763,-170.0,0.00017948,2]
[351123666,1738344647772,-170.0,0.00017948,2]
[351123668,1738344647781,-170.0,0.00017948,2]
[351123669,1738344647790,-170.0,0.00017948,2]
[351123671,1738344647799,-170.0,0.00017948,2]
[351123674,1738344647809,-170.0,0.00017948,2]
[351123675,1738344647819,-170.0,0.00017948,2]
[351123677,1738344647828,-170.0,0.00017948,2]
[351123679,1738344647837,-170.0,0.00017948,2]
[351123681,1738344647847,-170.0,0.00017948,2]
[351123683,1738344647856,-170.0,0.00017948,2]
[351123685,1738344647865,-170.0,0.00017948,2]
[351123687,1738344647875,-170.0,0.00017948,2]
[351123689,1738344647884,-170.0,0.00017948,2]
[351123691,1738344647894,-211.72,0.00017948,2]
[351123693,1738344647903,-224.07,0.00017948,2]
[351123695,1738344647912,-157.0,0.00017948,2]
[351123697,1738344647921,-157.0,0.00017948,2]
[351123699,1738344647931,-157.0,0.00017948,2]
[351123701,1738344647940,-157.0,0.00017948,2]
[351123703,1738344647949,-157.0,0.00017948,2]
[351123705,1738344647959,-157.0,0.00017948,2]
[351123707,1738344647971,-157.0,0.00017948,2]
[351123709,1738344647980,-157.0,0.00017948,2]
[351123711,1738344647990,-157.0,0.00017948,2]
[351123713,1738344647999,-157.0,0.00017948,2]
[351123715,1738344648009,-157.0,0.00017948,2]
[351123717,1738344648019,-157.0,0.00017948,2]
[351123719,1738344648028,-271.4,0.00017948,2]
[351123721,1738344648037,-167.0,0.00017948,2]
[351123723,1738344648047,-167.0,0.00017948,2]
[351123725,1738344648057,-166.0,0.00017948,2]
[351123727,1738344648066,-2298.60708422,0.00018,7]
[351123729,1738344648076,-1000.0,0.00018,18]
[351123731,1738344648086,-1000.0,0.00018,4]
[351123733,1738344648096,-151.0,0.00018,2]
[351123735,1738344648106,-188.88,0.00018,2]
[351123737,1738344648116,-257.565147,0.00018,2]
[351123747,1738344648202,-257.565147,0.00018,2]
[351123749,1738344648211,-1484.1460681,0.00018035,2]
[351123751,1738344648221,-5000.0,0.00018082,2]
[351123752,1738344648230,-5000.0,0.00018082,2]
[351123754,1738344648240,-229.909298,0.00018082,2]
[351123756,1738344648249,-302.172798,0.00018082,2]
[351123758,1738344648258,-302.172798,0.00018082,2]
[351123760,1738344648267,-500.0,0.00018082,2]
[351123762,1738344648276,-635.21,0.00018082,2]
[351123764,1738344648288,-556.53,0.00018082,2]
[351123766,1738344648297,-500.0,0.00018082,2]
[351123768,1738344648306,-845.4,0.00018082,2]
[351123770,1738344648315,-8147.56,0.00018082,2]
[351123772,1738344648325,-5110.0,0.00018082,2]
[351123774,1738344648334,-3058.46,0.00018082,2]
[351123776,1738344648343,-2099.18,0.00018082,2]
[351123778,1738344648353,-500.0,0.00018082,2]
[351123780,1738344648363,-1360.63,0.00018082,2]
[351123782,1738344648373,-500.0,0.00018082,2]
[351123784,1738344648383,-500.0,0.00018082,2]
[351123786,1738344648392,-598.89,0.00018082,2]
[351123788,1738344648401,-803.39,0.00018082,2]
[351123790,1738344648411,-672.42,0.00018082,2]
[351123792,1738344648420,-500.0,0.00018082,2]
[351123794,1738344648430,-500.0,0.00018082,2]
[351123795,1738344648439,-500.0,0.00018082,2]
[351123797,1738344648448,-776.07,0.00018082,2]
[351123799,1738344648457,-991.52,0.00018082,2]
[351123801,1738344648467,-2003.47,0.00018082,2]
[351123803,1738344648477,-1915.37,0.00018082,2]
[351123805,1738344648486,-17311.44,0.00018082,2]
[351123807,1738344648496,-500.0,0.00018082,2]
[351123809,1738344648506,-1216.83,0.00018082,2]
[351123811,1738344648516,-567.75,0.00018082,2]
[351123813,1738344648525,-5287.52,0.00018082,2]
[351123815,1738344648534,-500.0,0.00018082,2]
[351123817,1738344648544,-668.33,0.00018082,2]
[351123819,1738344648553,-500.0,0.00018082,2]
[351123821,1738344648563,-1321.32,0.00018082,2]
[351123823,1738344648573,-500.0,0.00018082,2]
[351123825,1738344648582,-500.0,0.00018082,2]
[351123827,1738344648592,-500.0,0.00018082,2]
[351123829,1738344648602,-500.0,0.00018082,2]
[351123831,1738344648612,-858.87,0.00018082,2]
[351123833,1738344648621,-2515.04,0.000181,2]
[351123835,1738344648631,-154.31,0.00018129,2]
[351123837,1738344648641,-769.87761517,0.00018141,2]
[351123839,1738344648650,-10595.68658752,0.0001815,3]
[351123841,1738344648661,-151.0,0.0001815,2]
[351123844,1738344648673,-257.565147,0.0001815,2]
[351123846,1738344648683,-257.565156,0.0001815,2]
[351123847,1738344648692,-283.968951,0.0001815,2]
[351123849,1738344648702,-283.968947,0.0001815,2]
[351123851,1738344648712,-402.000057,0.0001815,2]
[351123853,1738344648722,-402.00005,0.0001815,2]
[351123855,1738344648731,-151.0,0.0001815,2]
[351123857,1738344648741,-151.0,0.0001815,2]
[351123859,1738344648750,-153.0,0.0001815,2]
[351123861,1738344648761,-153.0,0.0001815,2]
[351123863,1738344648771,-153.0,0.0001815,2]
[351123865,1738344648781,-153.0,0.0001815,2]
[351123868,1738344648795,-153.0,0.0001815,2]
[351123870,1738344648805,-153.0,0.0001815,2]
[351123872,1738344648815,-153.0,0.0001815,2]
[351123874,1738344648824,-153.0,0.0001815,2]
[351123876,1738344648834,-153.0,0.0001815,2]
[351123878,1738344648843,-153.0,0.0001815,2]
[351123880,1738344648852,-153.0,0.0001815,2]
[351123882,1738344648862,-153.0,0.0001815,2]
[351123884,1738344648871,-153.0,0.0001815,2]
[351123886,1738344648881,-153.0,0.0001815,2]
[351123888,1738344648890,-153.0,0.0001815,2]
[351123890,1738344648900,-153.0,0.0001815,2]
[351123892,1738344648910,-153.0,0.0001815,2]
[351123894,1738344648919,-153.0,0.0001815,2]
[351123895,1738344648928,-153.0,0.0001815,2]
[351123897,1738344648938,-153.0,0.0001815,2]
[351123899,1738344648947,-153.0,0.0001815,2]
[351123901,1738344648957,-153.0,0.0001815,2]
[351123903,1738344648967,-153.0,0.0001815,2]
[351123905,1738344648977,-153.0,0.0001815,2]
[351123908,1738344648986,-153.0,0.0001815,2]
[351123910,1738344648997,-153.0,0.0001815,2]
[351123911,1738344649008,-153.0,0.0001815,2]
[351123913,1738344649021,-153.0,0.0001815,2]
[351123915,1738344649030,-153.0,0.0001815,2]
[351123917,1738344649040,-153.0,0.0001815,2]
[351123920,1738344649049,-153.0,0.0001815,2]
[351123921,1738344649059,-153.0,0.0001815,2]
[351123923,1738344649069,-153.0,0.0001815,2]
[351123925,1738344649078,-153.0,0.0001815,2]
[351123927,1738344649088,-153.0,0.0001815,2]
[351123929,1738344649097,-153.0,0.0001815,2]
[351123931,1738344649106,-153.0,0.0001815,2]
[351123933,1738344649115,-153.0,0.0001815,2]
[351123935,1738344649125,-153.0,0.0001815,2]
[351123937,1738344649134,-153.0,0.0001815,2]
[351123939,1738344649144,-153.0,0.0001815,2]
[351123941,1738344649153,-153.0,0.0001815,2]
[351123943,1738344649162,-153.0,0.0001815,2]
[351123945,1738344649171,-153.0,0.0001815,2]
[351123947,1738344649180,-153.0,0.0001815,2]
[351123949,1738344649189,-153.0,0.0001815,2]
[351123951,1738344649198,-153.0,0.0001815,2]
[351123953,1738344649207,-153.0,0.0001815,2]
[351123955,1738344649216,-153.0,0.0001815,2]
[351123957,1738344649226,-153.0,0.0001815,2]
[351123959,1738344649234,-153.0,0.0001815,2]
[351123961,1738344649244,-153.0,0.0001815,2]
[351123964,1738344649263,-153.0,0.0001815,2]
[351123966,1738344649273,-153.0,0.0001815,2]
[351123968,1738344649284,-153.0,0.0001815,2]
[351123970,1738344649298,-153.0,0.0001815,2]
[351123972,1738344649308,-153.0,0.0001815,2]
[351123974,1738344649317,-153.0,0.0001815,2]
[351123975,1738344649327,-153.0,0.0001815,2]
[351123977,1738344649337,-153.0,0.0001815,2]
[351123979,1738344649346,-153.0,0.0001815,2]
[351123981,1738344649356,-153.0,0.0001815,2]
[351123983,1738344649368,-153.0,0.0001815,2]
[351123985,1738344649378,-153.0,0.0001815,2]
[351123987,1738344649388,-153.0,0.0001815,2]
[351123989,1738344649398,-153.0,0.0001815,2]
[351123991,1738344649407,-153.0,0.0001815,2]
[351123993,1738344649417,-153.0,0.0001815,2]
[351123995,1738344649427,-153.0,0.0001815,2]
[351123997,1738344649437,-153.0,0.0001815,2]
[351123999,1738344649446,-153.0,0.0001815,2]
[351124001,1738344649456,-153.0,0.0001815,2]
[351124003,1738344649465,-153.0,0.0001815,2]
[351124005,1738344649475,-153.0,0.0001815,2]
[351124007,1738344649485,-153.0,0.0001815,2]
[351124009,1738344649495,-153.0,0.0001815,2]
[351124011,1738344649504,-153.0,0.0001815,2]
[351124013,1738344649513,-153.0,0.0001815,2]
[351124015,1738344649522,-153.0,0.0001815,2]
[351124016,1738344649532,-153.0,0.0001815,2]
[351124017,1738344649541,-153.0,0.0001815,2]
[351124018,1738344649551,-153.0,0.0001815,2]
[351124019,1738344649560,-153.0,0.0001815,2]
[351124020,1738344649570,-153.0,0.0001815,2]
[351124021,1738344649579,-153.0,0.0001815,2]
[351124022,1738344649588,-153.0,0.0001815,2]
[351124023,1738344649598,-153.0,0.0001815,2]
[351124024,1738344649607,-153.0,0.0001815,2]
[351124025,1738344649727,-153.0,0.0001815,2]
[351124026,1738344649736,-153.0,0.0001815,2]
[351124028,1738344649747,-153.0,0.0001815,2]
[351124029,1738344649756,-153.0,0.0001815,2]
[351124031,1738344649766,-153.0,0.0001815,2]
[351124033,1738344649775,-153.0,0.0001815,2]
[351124035,1738344649784,-153.0,0.0001815,2]
[351124037,1738344649794,-153.0,0.0001815,2]
[351124040,1738344649803,-153.0,0.0001815,2]
[351124041,1738344649812,-153.0,0.0001815,2]
[351124044,1738344649822,-153.0,0.0001815,2]
[351124046,1738344649831,-153.0,0.0001815,2]
[351124048,1738344649841,-153.0,0.0001815,2]
[351124050,1738344649850,-153.0,0.0001815,2]
[351124051,1738344649860,-153.0,0.0001815,2]
[351124053,1738344649869,-153.0,0.0001815,2]
[351124055,1738344649878,-153.0,0.0001815,2]
[351124057,1738344649888,-153.0,0.0001815,2]
[351124059,1738344649897,-153.0,0.0001815,2]
[351124061,1738344649906,-153.0,0.0001815,2]
[351124063,1738344649916,-153.0,0.0001815,2]
[351124065,1738344649928,-153.0,0.0001815,2]
[351124068,1738344649937,-153.0,0.0001815,2]
[351124070,1738344649946,-153.0,0.0001815,2]
[351124071,1738344649956,-153.0,0.0001815,2]
[351124073,1738344649965,-153.0,0.0001815,2]
[351124075,1738344649975,-153.0,0.0001815,2]
[351124077,1738344649984,-153.0,0.0001815,2]
[351124079,1738344649994,-153.0,0.0001815,2]
[351124081,1738344650004,-153.0,0.0001815,2]
[351124083,1738344650013,-153.0,0.0001815,2]
[351124085,1738344650023,-153.0,0.0001815,2]
[351124087,1738344650032,-153.0,0.0001815,2]
[351124089,1738344650042,-153.0,0.0001815,2]
[351124091,1738344650051,-153.0,0.0001815,2]
[351124094,1738344650064,-153.0,0.0001815,2]
[351124096,1738344650074,-153.0,0.0001815,2]
[351124098,1738344650084,-153.0,0.0001815,2]
[351124100,1738344650093,-153.0,0.0001815,2]
[351124102,1738344650103,-153.0,0.0001815,2]
[351124104,1738344650113,-153.0,0.0001815,2]
[351124106,1738344650122,-153.0,0.0001815,2]
[351124108,1738344650131,-153.0,0.0001815,2]
[351124110,1738344650141,-153.0,0.0001815,2]
[351124112,1738344650150,-153.0,0.0001815,2]
[351124114,1738344650160,-153.0,0.0001815,2]
[351124116,1738344650169,-153.0,0.0001815,2]
[351124118,1738344650178,-153.0,0.0001815,2]
[351124120,1738344650188,-153.0,0.0001815,2]
[351124122,1738344650197,-153.0,0.0001815,2]
[351124124,1738344650206,-153.0,0.0001815,2]
[351124126,1738344650215,-153.0,0.0001815,2]
[351124128,1738344650225,-153.0,0.0001815,2]
[351124130,1738344650234,-153.0,0.0001815,2]
[351124132,1738344650244,-153.0,0.0001815,2]
[351124134,1738344650253,-500.0,0.00018173,2]
[351124136,1738344650263,-500.25485169,0.00018173,2]
[351124138,1738344650273,-306.0,0.00018192,2]
[351124140,1738344650282,-253808.78969396,0.000182,15]
[351124174,1738344650610,-500.0,0.00016575,2]
[351124176,1738344650620,-500.0,0.00016712,2]
[351124178,1738344650630,-500.0,0.00016849,2]
[351124180,1738344650640,-611.62,0.00016986,2]
[351124182,1738344650650,-396.0,0.00017541,2]
[351124184,1738344650659,-30206.68125659,0.000182,15]
[351124213,1738344650844,-150.0,0.00017541,2]
[351124215,1738344650931,-340.99707547,0.000182,15]
[351126149,1738345244492,265.564572,0.00013973,2]
[351126190,1738345832773,-300.0,0.00016437,2]
[351126193,1738345832790,-500.0,0.00016438,2]
[351126195,1738345832801,-500.0,0.00016438,2]
[351126197,1738345832813,-500.0,0.00016438,2]
[351126199,1738345832824,-500.0,0.00016438,2]
[351126201,1738345832834,-500.0,0.00016438,2]
[351126203,1738345832844,-500.0,0.00016438,2]
[351126205,1738345832854,-500.0,0.00016438,2]
[351126208,1738345832865,-500.0,0.00016438,2]
[351126210,1738345832876,-500.0,0.00016438,2]
[351126212,1738345832887,-500.0,0.00016438,2]
[351126214,1738345832898,-500.0,0.00016438,2]
[351126216,1738345832908,-500.0,0.00016438,2]
[351126219,1738345832919,-877.88,0.00016438,2]
[351126221,1738345832930,-500.0,0.00016438,2]
[351126223,1738345832940,-500.0,0.00016438,2]
[351126225,1738345832951,-7934.41,0.00016438,2]
[351126227,1738345832961,-500.0,0.00016438,2]
[351126230,1738345832972,-500.0,0.00016438,2]
[351126233,1738345832983,-557.71,0.00016438,2]
[351126236,1738345832993,-500.0,0.00016438,2]
[351126239,1738345833004,-500.0,0.00016438,2]
[351126243,1738345833015,-500.0,0.00016438,2]
[351126246,1738345833027,-500.0,0.00016438,2]
[351126251,1738345833039,-918.26,0.00016438,2]
[351126254,1738345833050,-500.0,0.00016438,2]
[351126257,1738345833061,-500.0,0.00016438,2]
[351126260,1738345833072,-500.0,0.00016438,2]
[351126263,1738345833083,-3734.3,0.00016438,2]
[351126267,1738345833094,-2342.08,0.00016438,2]
[351126270,1738345833106,-962.13,0.00016438,2]
[351126272,1738345833117,-500.0,0.00016438,2]
[351126274,1738345833128,-1401.8,0.00016438,2]
[351126276,1738345833139,-500.0,0.00016438,2]
[351126280,1738345833151,-605.6,0.00016438,2]
[351126284,1738345833162,-177.6389272,0.00016438,2]
[351126287,1738345833172,-500.0,0.00016438,2]
[351126290,1738345833183,-500.0,0.00016438,2]
[351126293,1738345833194,-1021.56888792,0.00016474,2]
[351126296,1738345833206,-2423.45,0.00016574,2]
[351126298,1738345833217,-500.0,0.00016575,2]
[351126300,1738345833228,-500.0,0.00016575,2]
[351126302,1738345833239,-500.0,0.00016575,2]
[351126305,1738345833250,-500.0,0.00016575,2]
[351126307,1738345833262,-196.55524198,0.00016575,2]
[351126309,1738345833274,-500.0,0.00016575,2]
[351126311,1738345833288,-500.0,0.00016575,2]
[351126313,1738345833300,-500.0,0.00016575,2]
[351126316,1738345833311,-500.0,0.00016575,2]
[351126318,1738345833323,-500.0,0.00016575,2]
[351126320,1738345833335,-500.0,0.00016575,2]
[351126322,1738345833347,-46.7067739,0.00016575,2]
[351126325,1738345833362,-453.2932261,0.00016575,2]
[351126327,1738345833374,-877.88,0.00016575,2]
[351126329,1738345833385,-500.0,0.00016575,2]
[351126331,1738345833397,-500.0,0.00016575,2]
[351126334,1738345833408,-7934.41,0.00016575,2]
[351126336,1738345833420,-500.0,0.00016575,2]
[351126338,1738345833430,-500.0,0.00016575,2]
[351126340,1738345833440,-557.71,0.00016575,2]
[351126342,1738345833451,-500.0,0.00016575,2]
[351126362,1738345833635,-500.0,0.00016575,2]
[351126365,1738345833653,-500.0,0.00016575,2]
[351126367,1738345833662,-204.85,0.00016575,2]
[351126369,1738345833672,-918.26,0.00016575,2]
[351126371,1738345833684,-500.0,0.00016575,2]
[351126373,1738345833694,-500.0,0.00016575,2]
[351126375,1738345833703,-500.0,0.00016575,2]
[351126376,1738345833713,-3734.3,0.00016575,2]
[351126378,1738345833723,-2342.08,0.00016575,2]
[351126380,1738345833733,-962.13,0.00016575,2]
[351126382,1738345833743,-500.0,0.00016575,2]
[351126384,1738345833753,-1401.8,0.00016575,2]
[351126386,1738345833764,-500.0,0.00016575,2]
[351126387,1738345833774,-605.6,0.00016575,2]
[351126389,1738345833787,-500.0,0.00016575,2]
[351126391,1738345833803,-500.0,0.00016575,2]
[351126393,1738345833813,-2423.45,0.00016711,2]
[351126395,1738345833822,-500.0,0.00016712,2]
[351126397,1738345833831,-500.0,0.00016712,2]
[351126399,1738345833841,-500.0,0.00016712,2]
[351126401,1738345833850,-500.0,0.00016712,2]
[351126403,1738345833860,-500.0,0.00016712,2]
[351126404,1738345833870,-500.0,0.00016712,2]
[351126406,1738345833879,-500.0,0.00016712,2]
[351126408,1738345833889,-500.0,0.00016712,2]
[351126410,1738345833898,-500.0,0.00016712,2]
[351126412,1738345833908,-618.69,0.00016712,2]
[351126414,1738345833918,-500.0,0.00016712,2]
[351126416,1738345833928,-877.88,0.00016712,2]
[351126418,1738345833937,-500.0,0.00016712,2]
[351126419,1738345833947,-500.0,0.00016712,2]
[351126421,1738345833957,-7934.41,0.00016712,2]
[351126423,1738345833967,-500.0,0.00016712,2]
[351126425,1738345833977,-500.0,0.00016712,2]
[351126427,1738345833987,-557.71,0.00016712,2]
[351126429,1738345833997,-501.1937968,0.00016712,2]
[351126431,1738345834007,-500.0,0.00016712,2]
[351126433,1738345834016,-500.0,0.00016712,2]
[351126435,1738345834026,-918.26,0.00016712,2]
[351126437,1738345834037,-500.0,0.00016712,2]
[351126438,1738345834047,-500.0,0.00016712,2]
[351126440,1738345834057,-500.0,0.00016712,2]
[351126442,1738345834067,-3734.3,0.00016712,2]
[351126444,1738345834077,-2342.08,0.00016712,2]
[351126446,1738345834087,-962.13,0.00016712,2]
[351126448,1738345834097,-500.0,0.00016712,2]
[351126450,1738345834106,-1401.8,0.00016712,2]
[351126452,1738345834116,-500.0,0.00016712,2]
[351126454,1738345834126,-605.6,0.00016712,2]
[351126455,1738345834136,-500.0,0.00016712,2]
[351126457,1738345834146,-500.0,0.00016712,2]
[351126459,1738345834155,-2423.45,0.00016848,2]
[351126461,1738345834165,-500.0,0.00016849,2]